bitfinex/quotes_ETHUSD_20260208
["timestamp","ask_amount","ask_price","bid_price","bid_amount"]
[1770515879439,0.94553057,2097.3,2096.6,6.30961805]
[1770515879733,0.90524573,2096.9,2096.3,1.19357596]
[1770515879931,0.90524573,2097.2,2096.6,5.2906645]
[1770515880560,0.90524573,2097.2,2096.8,4.09828706]
[1770515880862,0.002,2097.3,2096.8,5.29057826]
[1770515881056,0.94785703,2097.3,2096.9,10.70399774]
[1770515881255,0.90724573,2097.3,2096.8,1.19228427]
[1770515881662,0.90724573,2097.3,2096.7,11.89631346]
[1770515881964,0.90724573,2097.3,2096.7,1.19231572]
[1770515882166,0.002,2097.1,2096.7,1.19231572]
[1770515882461,0.002,2097.1,2096.8,10.70399774]
[1770515882661,0.90724573,2097.1,2096.8,10.70399774]
[1770515882869,0.90724573,2097.1,2096.7,1.19231572]
[1770515883068,0.002,2097.1,2096.7,11.89631346]
[1770515886170,0.002,2097.1,2096.7,10.70399774]
[1770515886670,0.002,2097.1,2096.7,11.89634224]
[1770515887966,0.91699664,2097.1,2096.7,11.89634224]
[1770515889390,0.91499664,2097.0,2096.6,0.001]
[1770515889540,0.91499664,2097.0,2096.4,0.001]
[1770515890067,0.91499664,2097.0,2096.4,15.99575468]
[1770515890372,0.91499664,2097.0,2096.4,5.29175694]
[1770515890583,0.91499664,2097.0,2096.4,1.19346988]
[1770515891098,0.91499664,2096.9,2096.4,0.001]
[1770515891484,0.91499664,2096.9,2096.5,10.70399774]
[1770515893471,0.92356143,2097.1,2096.5,11.89642489]
[1770515894993,0.92356143,2097.1,2096.6,0.001]
[1770515895495,0.002,2096.9,2096.6,0.001]
[1770515898901,0.002,2096.9,2096.7,10.70399774]
[1770515899901,0.92356143,2096.9,2096.7,10.70399774]
[1770515906118,0.002,2096.9,2096.7,10.70399774]
[1770515907526,0.002,2097.3,2096.9,0.9989391]
[1770515908091,0.002,2097.3,2096.9,1.19222969]
[1770515908304,0.002,2097.3,2096.8,11.89724707]
[1770515908496,0.92356143,2097.3,2096.8,11.89724707]
[1770515909307,0.92356143,2097.3,2096.9,1.19223039]
[1770515909813,0.002,2097.3,2096.9,1.19223039]
[1770515910314,0.002,2097.3,2097.0,10.70399774]
[1770515910315,0.92356143,2097.3,2097.0,10.70399774]
[1770515911629,0.96417273,2097.3,2097.0,10.70399774]
[1770515911789,0.96417273,2097.3,2096.8,0.001]
[1770515911988,0.96417273,2097.3,2096.9,10.70399774]
[1770515915793,0.002,2097.3,2096.9,12.84357868]
[1770515918916,0.002,2097.3,2096.9,2.13958094]
[1770515919429,0.002,2097.1,2096.9,2.13958094]
[1770515919821,0.002,2097.3,2096.9,2.13958094]
[1770515920001,0.002,2097.3,2097.0,10.70399774]
[1770515920202,0.002,2097.3,2096.9,2.13958094]
[1770515921045,0.002,2097.3,2097.0,10.70399774]
[1770515921210,0.002,2097.3,2097.0,11.65137109]
[1770515921523,0.002,2097.3,2097.0,10.70399774]
[1770515923226,0.002,2097.3,2097.1,1.19212245]
[1770515923698,0.002,2097.3,2097.2,10.70399774]
[1770515927112,0.002,2097.3,2097.2,11.89606335]
[1770515929721,0.002,2097.5,2097.2,2.13943896]
[1770515929904,0.002,2097.5,2097.3,10.70399774]
[1770515931727,0.002,2097.5,2097.3,10.56079774]
[1770515933916,0.002,2097.8,2097.3,12.70015905]
[1770515934439,0.002,2098.0,2097.5,4.09828706]
[1770515934636,0.99446933,2098.0,2097.6,9.7201228]
[1770515934946,0.99446933,2098.0,2097.5,9.7201228]
[1770515934947,1.03308063,2097.9,2097.5,9.7201228]
[1770515935111,1.03308063,2097.9,2097.2,1.19202766]
[1770515935440,1.03308063,2097.9,2097.3,1.19200337]
[1770515935936,0.99246933,2097.7,2097.1,0.001]
[1770515936155,0.99246933,2097.7,2097.2,10.9121878]
[1770515936641,0.99246933,2097.7,2097.3,9.7201228]
[1770515940060,0.99246933,2097.6,2097.3,9.7201228]
[1770515940250,1.03308063,2097.6,2097.3,9.7201228]
[1770515940560,0.99246933,2097.6,2097.4,9.7201228]
[1770515940851,0.99246933,2097.6,2097.2,9.7201228]
[1770515941240,0.99246933,2097.6,2097.3,9.7201228]
[1770515941559,0.99246933,2097.6,2097.2,9.7201228]
[1770515941852,0.99246933,2097.6,2097.1,1.19312192]
[1770515942028,0.99246933,2097.6,2097.2,9.7201228]
[1770515942535,0.99246933,2097.6,2097.3,9.7201228]
[1770515943453,1.19175311,2097.8,2097.3,9.7201228]
[1770515943454,2.18422244,2097.8,2097.3,9.7201228]
[1770515943657,0.99246933,2097.7,2097.3,9.7201228]
[1770515944353,0.0406113,2097.9,2097.4,0.94737335]
[1770515944527,0.99246933,2098.1,2097.3,10.91210801]
[1770515944528,0.002,2098.5,2097.8,0.94737335]
[1770515944731,0.002,2098.5,2098.0,5.04663014]
[1770515945060,0.002,2098.5,2098.1,0.94737335]
[1770515945449,0.002,2098.5,2098.2,1.19149747]
[1770515945645,0.002,2098.5,2098.2,9.7141228]
[1770515945959,1.00455369,2098.5,2098.2,9.7141228]
[1770515946533,0.002,2098.5,2098.2,9.7141228]
[1770515948876,0.002,2098.5,2098.1,2.15890285]
[1770515949047,0.002,2098.5,2098.3,9.7141228]
[1770515950052,0.96394239,2098.5,2097.8,1.19168237]
[1770515950271,0.96394239,2098.5,2097.9,1.19166749]
[1770515955381,0.96394239,2098.5,2098.0,9.7141228]
[1770515956953,1.0286145,2098.4,2098.0,9.7141228]
[1770515957275,0.9880032,2098.4,2098.1,0.001]
[1770515957472,0.002,2098.3,2098.1,0.001]
[1770515959873,0.002,2098.3,2098.2,9.7141228]
[1770515962494,1.19333858,2098.5,2098.1,0.001]
[1770515962661,1.19333858,2098.5,2098.2,9.7121228]
[1770515964785,1.19333858,2098.5,2098.1,0.001]
[1770515965080,0.9880032,2098.3,2097.9,0.001]
[1770515965280,0.0406113,2098.2,2097.9,0.001]
[1770515965985,1.19333858,2098.5,2098.0,0.95761627]
[1770515965986,0.002,2098.5,2098.0,0.95761627]
[1770515967582,0.0426113,2098.5,2098.0,0.95761627]
[1770515968886,0.002,2098.5,2098.0,0.95761627]
[1770515969392,0.002,2098.5,2097.9,0.001]
[1770515969597,1.0306145,2098.5,2097.9,0.001]
[1770515970186,1.0306145,2098.5,2098.2,0.001]
[1770515970388,0.002,2098.5,2098.2,0.001]
[1770515970591,0.002,2098.3,2098.2,0.001]
[1770515972970,0.002,2098.3,2098.2,0.95861627]
[1770515975798,0.002,2098.3,2098.2,0.001]
[1770516000737,0.002,2098.5,2098.3,0.96201544]
[1770516001444,0.002,2098.5,2098.3,2.15343956]
[1770516002217,0.99055732,2098.5,2098.2,0.001]
[1770516002422,1.02916862,2098.4,2098.2,0.001]
[1770516002625,0.98855732,2098.3,2097.9,0.001]
[1770516003813,4.09880945,2098.5,2097.9,0.001]
[1770516003814,1.19333185,2098.5,2097.9,0.96301544]
[1770516004214,2.18188917,2098.5,2097.9,0.96301544]
[1770516004519,1.02916862,2098.4,2097.9,0.001]
[1770516005134,0.002,2098.5,2097.9,0.96301544]
[1770516005517,0.002,2098.5,2098.0,0.96201544]
[1770516008347,0.002,2098.5,2098.1,0.001]
[1770516008547,0.002,2098.2,2098.1,0.001]
[1770516014747,0.002,2098.4,2098.1,0.001]
[1770516014945,0.002,2098.4,2098.1,1.19255426]
[1770516015326,0.002,2098.4,2098.1,0.001]
[1770516015858,0.002,2098.4,2098.1,0.96253912]
[1770516017157,0.002,2098.4,2098.2,1.19149747]
[1770516018651,0.002,2098.4,2098.2,2.15303659]
[1770516020476,0.002,2098.7,2098.2,2.15303659]
[1770516020477,0.002,2098.7,2098.2,5.28830692]
[1770516020646,0.002,2098.7,2098.3,0.96153912]
[1770516021937,0.002,2098.5,2098.4,1.19138391]
[1770516022666,0.91458905,2098.5,2098.2,0.001]
[1770516024067,0.002,2098.5,2098.2,0.001]
[1770516024364,0.002,2098.5,2098.2,0.96253912]
[1770516025379,0.91258905,2098.4,2098.2,0.001]
[1770516025942,0.91258905,2098.3,2098.2,0.001]
[1770516028753,0.95520035,2098.5,2098.2,0.001]
[1770516029685,0.002,2098.5,2098.2,0.001]
[1770516030446,0.91458905,2098.5,2098.2,0.001]
[1770516033065,0.002,2098.5,2098.2,0.001]
[1770516033681,0.002,2098.5,2098.4,0.001]
[1770516035552,0.91458905,2098.5,2098.4,0.001]
[1770516036476,0.96797091,2098.4,2098.1,0.001]
[1770516036655,1.00858221,2098.4,2098.1,0.001]
[1770516036974,0.0406113,2098.4,2098.1,0.001]
[1770516037177,0.002,2098.5,2098.1,0.92719714]
[1770516037957,0.002,2098.5,2098.1,0.001]
[1770516038280,0.96797091,2098.1,2097.5,0.92719714]
[1770516038468,0.96797091,2098.1,2097.5,2.1190813]
[1770516038971,0.96797091,2098.1,2097.1,0.001]
[1770516038972,0.96797091,2097.5,2097.1,0.001]
[1770516039176,0.03828484,2096.5,2094.3,2.3103123]
[1770516039392,0.03828484,2096.5,2093.8,0.03828484]
[1770516039393,0.03828484,2096.5,2094.4,1.19365927]
[1770516039394,1.66619209,2095.6,2094.4,1.19365927]
[1770516039696,0.24887995,2094.8,2094.5,0.003]
[1770516039857,4.09680945,2095.1,2093.6,0.92619714]
[1770516039858,1.19365927,2094.2,2093.6,0.92619714]
[1770516040053,1.93536146,2094.8,2094.2,0.96448198]
[1770516040274,4.57865683,2095.5,2094.2,0.92619714]
[1770516040479,4.57865683,2095.5,2094.6,0.92619714]
[1770516041065,4.09680945,2095.3,2094.3,0.92619714]
[1770516041264,0.03828484,2095.4,2094.0,0.92619714]
[1770516041578,0.03828484,2095.1,2093.9,1.19391467]
[1770516041779,0.03828484,2095.1,2093.8,0.92619714]
[1770516041959,1.00625575,2094.8,2093.6,1.19411186]
[1770516042560,2.19969029,2094.8,2093.6,2.120309]
[1770516042760,0.96797091,2094.7,2093.6,0.15877299]
[1770516042965,0.03828484,2094.5,2093.5,1.19414739]
[1770516043464,1.00625575,2094.5,2093.5,1.19414739]
[1770516044377,1.00625575,2094.5,2093.4,1.19422948]
[1770516045569,1.23174489,2094.8,2093.5,0.92619714]
[1770516045763,0.96797091,2094.8,2093.5,0.92619714]
[1770516045970,0.96797091,2095.2,2093.5,0.92619714]
[1770516046265,0.45811363,2095.1,2093.7,0.92619714]
[1770516046466,0.45811363,2095.1,2093.9,0.92619714]
[1770516047486,0.45811363,2095.1,2093.9,0.96448198]
[1770516047791,0.45811363,2095.1,2094.3,0.92619714]
[1770516048099,0.96797091,2095.6,2093.9,0.03828484]
[1770516048100,1.00858221,2096.1,2094.1,0.92619714]
[1770516048400,0.35190025,2095.5,2094.3,0.92619714]
[1770516048568,0.35190025,2095.5,2094.5,0.92619714]
[1770516048980,0.35190025,2095.5,2094.4,1.19365928]
[1770516049180,1.31987116,2095.5,2094.4,1.19365928]
[1770516049390,0.35498898,2095.4,2094.4,1.19365928]
[1770516051202,0.35498898,2095.4,2094.1,1.19380302]
[1770516051203,0.96797091,2095.3,2094.1,1.19380302]
[1770516051386,0.96797091,2095.1,2094.1,1.19380302]
[1770516051588,0.96797091,2094.9,2094.2,1.19376797]
[1770516051780,0.96797091,2094.9,2093.6,0.92719714]
[1770516052096,0.34339362,2095.0,2094.2,1.19376715]
[1770516053087,0.34339362,2095.0,2094.1,4.7752995]
[1770516053609,0.96797091,2094.9,2094.1,1.19383028]
[1770516053773,0.96797091,2094.9,2094.0,1.19385251]
[1770516054176,0.96797091,2094.9,2094.0,1.19387629]
[1770516054607,0.34339362,2095.0,2094.0,2.12003009]
[1770516054974,0.96797091,2094.7,2093.6,0.001]
[1770516055472,0.96797091,2094.5,2093.6,0.001]
[1770516055676,0.03828484,2094.6,2093.6,0.001]
[1770516055677,0.96797091,2094.3,2093.6,0.001]
[1770516055903,1.31466087,2094.2,2093.6,0.001]
[1770516056100,0.03828484,2094.0,2093.6,0.001]
[1770516056302,0.3889601,2094.0,2093.6,0.001]
[1770516056605,0.0658,2093.9,2093.6,0.001]
[1770516056994,0.03828484,2094.0,2093.6,0.001]
[1770516057196,0.37666614,2094.0,2093.6,0.001]
[1770516057578,0.3383813,2094.0,2093.6,0.001]
[1770516059680,0.3383813,2094.0,2093.8,0.001]
[1770516061000,0.0406113,2094.8,2093.8,0.001]
[1770516061001,0.34068242,2094.7,2093.8,0.001]
[1770516061206,0.0406113,2094.6,2093.8,0.001]
[1770516061612,1.00858221,2094.6,2093.8,0.001]
[1770516061984,0.33299892,2094.5,2093.8,0.001]
[1770516062426,0.33299892,2094.5,2093.8,0.92719714]
[1770516062706,0.002,2094.9,2093.9,0.92619714]
[1770516063389,0.002,2094.9,2094.0,2.12008443]
[1770516064622,0.002,2094.9,2094.1,0.92619714]
[1770516065919,0.002,2094.9,2094.2,1.19377327]
[1770516066804,0.91977769,2094.7,2094.1,1.19381912]
[1770516067625,0.91977769,2094.7,2094.1,1.19380095]
[1770516067815,0.91977769,2094.7,2093.8,0.001]
[1770516069220,0.96038899,2094.6,2093.8,0.001]
[1770516069403,0.91977769,2094.6,2093.8,0.001]
[1770516070000,0.002,2094.9,2093.8,0.91756204]
[1770516070600,0.0426113,2094.9,2093.8,0.91756204]
[1770516071123,0.002,2094.9,2093.8,0.91756204]
[1770516072209,0.002,2094.9,2094.1,0.001]
[1770516072404,0.002,2094.5,2094.1,0.001]
[1770516073516,0.99359914,2094.5,2094.1,0.001]
[1770516073713,0.002,2094.5,2094.1,0.001]
[1770516074937,0.002,2094.5,2094.1,0.9652526]
[1770516075108,0.002,2094.7,2094.1,0.9652526]
[1770516076832,0.002,2094.7,2094.2,1.19377327]
[1770516077230,0.002,2094.7,2094.2,2.15802587]
[1770516077534,0.002,2094.9,2094.2,2.15802587]
[1770516077732,0.33198853,2095.4,2094.2,2.15802587]
[1770516077733,0.33198853,2095.4,2094.6,0.9642526]
[1770516078049,0.002,2095.6,2094.6,0.9642526]
[1770516078821,0.002,2095.6,2094.9,2.15762698]
[1770516079757,0.002,2095.6,2095.0,0.9642526]
[1770516080814,0.002,2095.6,2095.1,1.19326046]
[1770516083020,0.002,2095.6,2095.0,4.77304185]
[1770516083344,0.002,2095.6,2094.9,4.77304185]
[1770516084328,0.002,2095.6,2095.0,0.9642526]
[1770516085054,0.002,2095.6,2095.1,2.15751306]
[1770516085554,0.002,2095.4,2095.1,2.15751306]
[1770516085720,0.002,2095.6,2095.1,2.15751306]
[1770516085920,0.002,2095.6,2095.2,0.9642526]
[1770516086624,0.002,2095.6,2095.1,1.19326046]
[1770516089337,0.002,2095.6,2094.8,5.73729445]
[1770516090353,0.002,2095.6,2094.9,0.9642526]
[1770516090549,0.002,2095.6,2094.8,4.77304185]
[1770516091236,0.002,2096.0,2095.1,0.9642526]
[1770516093446,0.002,2096.0,2095.2,1.19320351]
[1770516093660,0.99359914,2096.0,2095.2,1.19320351]
[1770516095450,0.99359914,2096.0,2095.1,4.77281405]
[1770516097849,0.99359914,2096.0,2095.3,0.001]
[1770516098025,0.002,2095.8,2095.3,0.001]
[1770516103635,0.002,2096.0,2095.3,0.001]
[1770516104738,0.002,2096.0,2095.3,1.19414656]
[1770516105760,0.002,2096.0,2095.3,2.13206464]
[1770516107247,0.94145185,2096.0,2095.3,1.19414656]
[1770516107746,0.002,2096.0,2095.3,1.19414656]
[1770516107945,0.002,2096.0,2095.3,2.13206464]
[1770516110767,0.002,2095.8,2095.3,2.13206464]
[1770516113272,0.94145185,2096.0,2095.3,1.19414656]
[1770516114678,0.94145185,2096.0,2095.3,0.001]
[1770516117281,0.93945185,2096.3,2095.3,0.93891808]
[1770516118071,0.93945185,2096.3,2095.3,0.001]
[1770516118274,1.23313639,2096.4,2095.3,0.001]
[1770516118275,0.93945185,2096.1,2095.3,0.001]
[1770516118880,0.93945185,2096.0,2095.3,0.001]
[1770516119884,0.93945185,2096.2,2095.3,0.001]
[1770516120069,0.98006315,2096.2,2095.3,0.001]
[1770516120386,0.93945185,2096.2,2095.3,0.001]
[1770516121672,0.93945185,2096.2,2095.3,1.19414656]
[1770516122282,0.98006315,2096.2,2095.5,0.001]
[1770516122682,0.94145185,2096.0,2095.5,0.001]
[1770516124087,0.002,2096.0,2095.5,0.001]
[1770516125188,0.94145185,2096.0,2095.5,0.001]
[1770516125487,0.002,2096.0,2095.5,0.001]
[1770516132606,0.91141372,2095.9,2095.5,0.001]
[1770516135488,0.91141372,2095.9,2095.7,0.001]
[1770516135688,0.91341372,2095.8,2095.7,0.001]
[1770516137278,0.002,2095.8,2095.7,0.001]
[1770516138424,0.91341372,2095.8,2095.7,0.001]
[1770516138930,0.91341372,2095.8,2095.5,0.001]
[1770516139110,0.91341372,2095.8,2095.3,0.001]
[1770516139821,0.91341372,2095.8,2095.3,0.04838149]
[1770516139822,0.002,2095.8,2095.3,0.04838149]
[1770516139979,0.002,2095.8,2095.3,0.001]
[1770516141218,0.91341372,2095.8,2095.3,0.001]
[1770516141519,0.002,2095.8,2095.3,0.001]
[1770516142211,0.002,2095.8,2095.3,0.04837017]
[1770516142391,0.002,2095.8,2095.3,0.001]
[1770516144824,0.002,2095.8,2095.3,1.19414656]
[1770516145417,0.002,2095.8,2095.3,2.13728765]
[1770516146023,0.002,2096.0,2095.4,0.94314109]
[1770516146207,0.002,2096.0,2095.4,0.99050673]
[1770516146927,0.002,2096.0,2095.5,1.19303268]
[1770516148200,0.002,2096.0,2095.5,1.19403268]
[1770516148399,0.002,2095.8,2095.5,1.19403268]
[1770516149025,0.002,2095.8,2095.5,0.001]
[1770516152728,0.002,2096.0,2095.5,0.94414109]
[1770516152897,0.002,2096.2,2095.5,0.94414109]
[1770516152898,0.002,2096.2,2095.6,0.94314109]
[1770516155027,0.002,2096.2,2095.7,1.19291883]
[1770516157122,0.002,2096.2,2095.6,4.77167533]
[1770516157326,0.002,2096.2,2095.7,0.96949202]
[1770516158917,1.00431313,2096.1,2095.6,4.77167533]
[1770516159217,0.002,2096.2,2095.5,1.19397575]
[1770516159812,0.002,2096.2,2095.9,0.001]
[1770516160039,0.002,2096.0,2095.9,0.001]
[1770516169823,1.00631313,2096.0,2095.9,0.001]
[1770516171127,1.00631313,2096.0,2095.6,1.19393292]
[1770516171326,1.00631313,2096.0,2095.6,0.001]
[1770516172224,1.00431313,2095.9,2095.6,0.001]
[1770516172428,1.00431313,2095.9,2095.3,0.001]
[1770516173943,0.002,2096.0,2095.5,0.97049202]
[1770516174945,0.002,2096.0,2095.7,0.96949202]
[1770516176146,0.33185852,2096.6,2095.9,0.98099217]
[1770516176350,1.33941461,2097.1,2095.9,0.98099217]
[1770516176557,1.38002591,2097.1,2095.9,0.98099217]
[1770516176752,1.19218688,2097.0,2095.9,0.98099217]
[1770516177057,0.19285985,2096.9,2095.9,0.98099217]
[1770516177248,1.38510554,2096.9,2095.9,0.98099217]
[1770516177436,0.15024855,2096.8,2095.9,0.98099217]
[1770516177635,0.0406113,2096.7,2095.9,0.98099217]
[1770516178434,0.0406113,2096.7,2096.0,1.19274809]
[1770516179662,0.0406113,2096.7,2096.0,2.17374026]
[1770516179843,0.0406113,2096.7,2096.1,0.98099217]
[1770516180042,0.0406113,2096.8,2096.1,0.98099217]
[1770516180358,0.0406113,2096.8,2096.2,1.19263429]
[1770516180562,0.0406113,2096.8,2096.2,2.17362646]
[1770516181062,0.0426113,2096.9,2096.2,2.17362646]
[1770516182245,1.23485015,2096.9,2096.2,2.17362646]
[1770516182445,0.0426113,2096.9,2096.2,2.17362646]
[1770516184061,1.23485083,2096.9,2096.2,2.17362646]
[1770516184366,0.22184378,2096.8,2096.0,1.1927415]
[1770516184534,0.22417024,2096.7,2095.9,4.77119239]
[1770516184862,1.41652182,2096.7,2095.9,4.77119239]
[1770516185063,1.41652182,2096.7,2095.9,1.192805]
[1770516185441,1.41852182,2096.7,2095.9,1.192805]
[1770516186767,1.41852182,2096.7,2095.8,2.1738187]
[1770516187066,0.20143169,2096.6,2095.8,2.1738187]
[1770516187267,0.0406113,2096.5,2095.8,2.1738187]
[1770516194248,0.0406113,2096.5,2095.9,1.06912568]
[1770516195064,1.23307516,2096.5,2095.9,1.06912568]
[1770516195380,1.47189034,2096.5,2095.9,1.06912568]
[1770516195566,1.47189034,2096.5,2095.7,1.06912568]
[1770516196478,0.27942648,2096.5,2095.8,1.19286191]
[1770516196670,0.27942648,2096.5,2095.8,2.26198759]
[1770516197361,0.27942648,2096.5,2096.0,0.001]
[1770516197675,0.002,2096.4,2096.0,0.001]
[1770516199993,0.002,2096.4,2096.0,1.07012568]
[1770516200991,0.002,2096.4,2096.1,1.19269118]
[1770516201201,0.002,2096.4,2096.1,2.26181686]
[1770516201492,0.002,2096.4,2096.1,1.06912568]
[1770516202396,0.002,2096.4,2096.2,1.06912568]
[1770516202685,0.002,2096.6,2096.2,1.06912568]
[1770516203072,0.002,2096.6,2096.4,1.06912568]
[1770516205478,0.002,2096.6,2096.3,1.19254911]
[1770516206115,0.002,2096.6,2096.4,2.26160309]
[1770516206982,0.002,2096.6,2096.5,1.06912568]
[1770516207493,0.002,2096.6,2096.5,2.2615893]
[1770516207694,0.002,2096.9,2096.6,1.06912568]
[1770516211100,0.002,2096.9,2096.6,2.26148955]
[1770516211685,0.002,2096.9,2096.7,1.06912568]
[1770516212827,0.002,2096.9,2096.8,1.06912568]
[1770516213495,0.002,2096.9,2096.7,1.19234438]
[1770516214429,0.002,2096.9,2096.7,2.26147006]
[1770516218895,0.002,2096.9,2096.8,1.09528063]
[1770516219498,0.3696741,2097.4,2097.2,1.19206561]
[1770516219804,0.3696741,2097.4,2097.3,1.09528063]
[1770516220197,1e-08,2097.4,2097.3,1.09528063]
[1770516223529,1e-08,2097.4,2097.3,2.2872894]
[1770516223827,1e-08,2097.4,2097.3,1.09528063]
[1770516224316,0.00200001,2097.4,2097.3,1.09528063]
[1770516224514,0.002,2097.5,2097.4,1.09528063]
[1770516226419,0.002,2097.8,2097.5,1.09528063]
[1770516226623,0.004,2097.8,2097.5,1.09528063]
[1770516227719,0.004,2097.8,2097.3,2.2872894]
[1770516231534,0.36096002,2097.8,2097.1,1.09528063]
[1770516231705,0.36096002,2097.8,2096.9,2.28847941]
[1770516231706,0.3594996,2097.6,2096.9,2.28847941]
[1770516231906,0.4001109,2097.5,2096.9,0.001]
[1770516232134,0.4021109,2097.5,2096.9,1.09628063]
[1770516232720,0.0426113,2097.5,2096.9,1.09628063]
[1770516233520,0.0426113,2097.5,2096.9,2.28850687]
[1770516233726,0.002,2097.5,2096.9,2.28850687]
[1770516234738,0.002,2097.5,2096.9,1.09628063]
[1770516235544,0.002,2097.5,2096.9,2.28851552]
[1770516236244,0.002,2097.5,2096.9,1.09628063]
[1770516236446,0.3713849,2097.5,2096.9,0.001]
[1770516236747,0.002,2097.3,2097.1,0.001]
[1770516237135,0.002,2097.2,2097.1,0.001]
[1770516238248,0.002,2097.2,2096.6,0.001]
[1770516238249,0.37415996,2097.1,2096.6,0.001]
[1770516238419,5.66982421,2097.0,2096.6,0.001]
[1770516238732,5.67182421,2097.0,2096.6,0.001]
[1770516239748,0.36101594,2096.9,2096.6,0.001]
[1770516240121,4.46450089,2096.8,2096.1,1.09628063]
[1770516240324,1.19240675,2096.6,2096.1,0.001]
[1770516240643,5.2958917,2096.6,2096.1,0.001]
[1770516240846,1.19240675,2096.6,2096.1,0.001]
[1770516241422,5.65924069,2096.6,2096.1,0.001]
[1770516241731,0.3656578,2096.3,2095.8,0.001]
[1770516243053,0.36793961,2096.1,2095.5,0.001]
[1770516244650,5.33440408,2096.2,2095.5,0.001]
[1770516244835,1.19263429,2096.2,2095.5,1.09628063]
[1770516245546,0.37680302,2096.1,2095.5,0.001]
[1770516247758,1.19274809,2096.0,2095.5,0.001]
[1770516248339,5.25374574,2096.4,2095.5,1.1427396]
[1770516248532,0.0406113,2096.3,2095.5,1.1427396]
[1770516249256,0.0406113,2096.3,2095.7,1.1427396]
[1770516249431,1.23313181,2096.4,2095.7,1.1427396]
[1770516249761,1.23310504,2096.5,2095.8,1.1417396]
[1770516254850,0.0406113,2096.5,2095.9,1.18503377]
[1770516255050,1.23305431,2096.6,2095.9,1.18503377]
[1770516255456,1.23302663,2096.6,2095.9,1.18503377]
[1770516256462,1.63216287,2096.6,2095.9,1.18503377]
[1770516259785,1.63216287,2096.6,2095.9,2.37782549]
[1770516260081,1.23302663,2096.6,2096.0,1.18503377]
[1770516262181,0.002,2096.4,2096.0,1.18503377]
[1770516265776,0.002,2096.4,2095.8,1.18503377]
[1770516267587,0.002,2096.4,2095.9,1.18503377]
[1770516271625,0.002,2096.4,2096.0,1.18503377]
[1770516271777,0.002,2096.4,2096.1,1.18503377]
[1770516272096,0.002,2096.4,2096.2,1.18503377]
[1770516277704,0.002,2096.4,2096.3,1.12628085]
[1770516281399,0.44394383,2096.4,2096.0,0.001]
[1770516281619,0.0406113,2096.3,2096.0,0.001]
[1770516282011,0.44394383,2096.4,2096.0,0.001]
[1770516282505,0.48455513,2096.4,2096.0,0.001]
[1770516283221,1.19257739,2096.3,2096.0,0.001]
[1770516285898,0.44884069,2096.2,2095.7,0.001]
[1770516286513,0.44884069,2096.2,2096.0,0.001]
[1770516286708,0.48945199,2096.2,2095.7,0.001]
[1770516286908,0.49145199,2096.2,2095.7,0.001]
[1770516287110,0.49145199,2096.2,2095.8,0.001]
[1770516288133,1.6841296,2096.2,2095.8,0.001]
[1770516288801,1.23528891,2096.2,2095.8,0.001]
[1770516289142,1.23528891,2096.2,2095.8,1.12728085]
[1770516289931,1.68934565,2096.2,2095.8,0.001]
[1770516290132,1.23528891,2096.2,2095.8,0.001]
[1770516293532,0.0426113,2096.2,2095.8,1.12728085]
[1770516293734,0.002,2096.2,2095.8,1.12728085]
[1770516296025,0.002,2096.2,2095.9,1.12628085]
[1770516298438,0.002,2096.2,2096.0,1.12628085]
[1770516298617,0.002,2096.2,2096.0,1.12728085]
[1770516301325,0.002,2096.2,2096.1,1.12628085]
[1770516302938,0.002,2096.4,2096.2,1.12628085]
[1770516303450,0.002,2096.4,2096.3,1.12628085]
[1770516315463,0.002,2096.4,2096.3,2.31885824]
[1770516320784,0.002,2097.1,2096.5,1.15932895]
[1770516320973,0.002,2097.1,2096.6,1.15932895]
[1770516322551,0.002,2097.1,2096.8,1.15932895]
[1770516324869,0.002,2097.5,2097.0,1.15932895]
[1770516326873,0.002,2097.5,2097.2,1.15932895]
[1770516330254,0.002,2097.5,2097.0,2.35146727]
[1770516330683,0.002,2097.5,2097.1,1.19211129]
[1770516331260,0.002,2097.5,2097.0,1.15932895]
[1770516331466,0.002,2097.5,2097.0,2.35150488]
[1770516331875,0.002,2097.5,2097.0,1.15932895]
[1770516332182,0.002,2097.5,2097.0,2.3514966]
[1770516334283,0.49947119,2097.4,2096.6,1.19237328]
[1770516334477,0.54008249,2097.4,2096.6,2.35170223]
[1770516334889,0.50023245,2097.2,2096.8,0.001]
[1770516335482,0.50023245,2097.1,2096.8,0.001]
[1770516336567,1.69566045,2097.3,2096.8,0.001]
[1770516337897,0.50296312,2097.2,2096.8,0.001]
[1770516338586,1.69504652,2097.2,2096.8,0.001]
[1770516339086,0.50362167,2097.1,2096.8,0.001]
[1770516340165,0.54255694,2097.1,2096.5,0.001]
[1770516341597,1.1921793,2097.0,2096.5,0.001]
[1770516341894,1.23466116,2097.3,2096.5,1.21557097]
[1770516343166,1.23466116,2097.3,2096.1,0.001]
[1770516343167,0.50617598,2096.7,2096.1,0.001]
[1770516343394,0.50617598,2096.5,2095.8,0.001]
[1770516343702,1.19252051,2096.4,2095.8,0.001]
[1770516344592,1.69932554,2096.4,2095.8,0.001]
[1770516345995,1.19244369,2096.6,2095.8,1.21557097]
[1770516346982,1.19244369,2096.6,2096.0,0.001]
[1770516349289,1.19249103,2096.5,2096.0,0.001]
[1770516350204,0.0406113,2096.4,2096.0,0.001]
[1770516350378,1.19249103,2096.5,2096.0,0.001]
[1770516352172,0.0406113,2096.4,2096.0,0.001]
[1770516352374,1.19249103,2096.5,2096.0,0.001]
[1770516353219,0.0406113,2096.4,2096.0,0.001]
[1770516353715,1.2331498,2096.4,2096.0,0.001]
[1770516353903,1.74591948,2096.4,2096.0,0.001]
[1770516354927,1.2331498,2096.4,2096.0,0.001]
[1770516357411,5.10648706,2097.1,2096.0,1.21557097]
[1770516357412,0.0406113,2096.5,2096.0,1.21557097]
[1770516357611,1.23284745,2096.9,2096.0,1.21557097]
[1770516358428,1.23284745,2096.9,2096.2,1.21457097]